bitfinex-derivatives/quotes_SOLF0:USTF0_20250712
["timestamp","ask_amount","ask_price","bid_price","bid_amount"]
[1752345148622,3.04799954,160.4,160.35,3.41]
[1752345148817,3.04799954,160.37,160.36,13.02326349]
[1752345149022,186.20799954,160.37,160.36,13.02326349]
[1752345149920,186.20799954,160.37,160.36,16.43326349]
[1752345150721,6.44921566,160.39,160.36,13.02326349]
[1752345150920,179.76,160.38,160.37,13.02326349]
[1752345151221,179.76,160.38,160.37,16.43326349]
[1752345151725,179.76,160.38,160.37,16.42600265]
[1752345152228,179.76,160.4,160.38,3.41]
[1752345152423,179.76,160.4,160.39,16.42515925]
[1752345153220,179.76,160.4,160.39,22.65765925]
[1752345155623,3.54,160.43,160.41,3.48]
[1752345155926,183.3,160.43,160.42,16.49515925]
[1752345157224,183.3,160.43,160.42,10.02662964]
[1752345157526,183.3,160.43,160.42,16.4925583]
[1752345158028,183.3,160.43,160.42,13.0125583]
[1752345159825,183.3,160.43,160.42,16.4925583]
[1752345160327,183.3,160.43,160.42,16.49383556]
[1752345161132,183.3,160.43,160.42,13.01383556]
[1752345163228,183.3,160.43,160.42,13.02842793]
[1752345164732,183.3,160.43,160.42,16.50842793]
[1752345165431,183.3,160.43,160.42,13.02842793]
[1752345166421,183.3,160.43,160.42,16.50842793]
[1752345170931,538.92,160.44,160.43,3.48]
[1752345171232,538.92,160.44,160.43,16.50842793]
[1752345171233,718.64,160.44,160.43,16.50842793]
[1752345172428,538.92,160.44,160.43,16.50842793]
[1752345172731,718.64,160.44,160.43,22.73952793]
[1752345173532,718.64,160.44,160.43,16.50842793]
[1752345174328,718.64,160.44,160.43,16.52245623]
[1752345175438,722.18,160.44,160.43,16.52245623]
[1752345177130,722.18,160.44,160.43,16.57076364]
[1752345178934,725.22690019,160.44,160.43,13.09076364]
[1752345179635,186.30690019,160.44,160.43,13.09076364]
[1752345180035,186.30690019,160.44,160.43,13.10512018]
[1752345180332,186.30690019,160.44,160.43,16.58512018]
[1752345180534,182.76690019,160.44,160.43,16.58512018]
[1752345181334,179.72,160.44,160.43,16.58512018]
[1752345181737,179.68,160.44,160.43,13.10512018]
[1752345182433,179.68,160.44,160.43,16.58512018]
[1752345186539,179.68,160.44,160.43,16.58849056]
[1752345190537,3.4,160.47,160.44,3.59]
[1752345190738,3.4,160.47,160.4,3.04579199]
[1752345190739,179.68,160.46,160.45,16.69849056]
[1752345190938,538.56,160.48,160.46,3.59]
[1752345191144,183.08,160.47,160.46,3.59]
[1752345191340,183.08,160.47,160.46,16.69312153]
[1752345191938,179.68,160.47,160.46,16.69312153]
[1752345192944,179.68,160.47,160.46,22.92302153]
[1752345194739,179.66,160.48,160.47,6.2294]
[1752345195038,179.66,160.48,160.47,22.92252153]
[1752345198540,3.4,160.54,160.48,3.59]
[1752345198741,3.4,160.54,160.5,3.59]
[1752345198742,179.64,160.53,160.5,3.59]
[1752345198933,183.04,160.53,160.52,3.59]
[1752345199139,183.04,160.53,160.52,13.10312153]
[1752345199444,183.04,160.53,160.52,16.69312153]
[1752345200245,179.64,160.53,160.52,16.69312153]
[1752345201148,179.64,160.53,160.52,22.92072153]
[1752345201543,3.04579199,160.6,160.52,16.14891352]
[1752345201742,179.66,160.59,160.54,3.59]
[1752345202045,3.4,160.58,160.55,13.10312153]
[1752345202241,3.4,160.58,160.56,16.69312153]
[1752345202440,3.4,160.58,160.57,6.49488333]
[1752345203334,3.4,160.58,160.56,3.59]
[1752345203537,3.4,160.58,160.57,10.06462827]
[1752345203735,3.4,160.59,160.58,3.59]
[1752345203940,183.06,160.59,160.54,6.2266]
[1752345204145,3.4,160.58,160.56,3.59]
[1752345204342,3.4,160.58,160.57,6.47228776]
[1752345205149,3.4,160.58,160.57,10.06228776]
[1752345205446,3.4,160.58,160.55,3.59]
[1752345205645,3.4,160.58,160.56,6.57900415]
[1752345205845,3.4,160.58,160.56,3.59]
[1752345206246,182.7013197,160.59,160.53,6.2271]
[1752345206449,3.4,160.57,160.54,6.57639479]
[1752345206645,3.4,160.57,160.55,6.57639479]
[1752345206945,3.4,160.57,160.56,10.16639479]
[1752345208047,3.4,160.58,160.56,10.16639479]
[1752345208244,3.4,160.58,160.56,3.59]
[1752345208747,3.0413197,160.57,160.5,3.0413197]
[1752345209042,3.4,160.55,160.51,6.57387782]
[1752345209244,3.4,160.54,160.52,6.57387782]
[1752345209544,3.4,160.54,160.48,3.0413197]
[1752345209748,3.4,160.54,160.49,6.59231386]
[1752345209944,3.4,160.54,160.5,6.59231386]
[1752345210251,3.4,160.54,160.51,6.59231386]
[1752345210546,3.4,160.54,160.47,6.2293]
[1752345210748,3.4,160.54,160.49,3.59]
[1752345210949,3.4,160.54,160.5,6.59440475]
[1752345211249,3.4,160.54,160.52,3.59]
[1752345211446,3.4,160.54,160.48,6.2289]
[1752345211643,3.4,160.54,160.51,3.59]
[1752345212147,3.4,160.54,160.52,3.59]
[1752345212342,3.0413197,160.53,160.49,3.59]
[1752345212545,3.0413197,160.53,160.24,24.48222324]
[1752345212546,3.4,160.49,160.44,3.59]
[1752345212744,3.4,160.49,160.45,10.18880074]
[1752345212941,3.4,160.47,160.4,8.25637913]
[1752345213145,3.4,160.47,160.41,6.59957803]
[1752345213343,3.4,160.47,160.43,3.59]
[1752345213545,3.4,160.47,160.45,3.59]
[1752345215349,3.4,160.47,160.41,3.59]
[1752345215547,3.54,160.46,160.43,3.61]
[1752345215748,3.54,160.48,160.45,6.2303]
[1752345216054,3.54,160.47,160.46,6.60315518]
[1752345216553,3.54,160.47,160.46,10.21315518]
[1752345219756,3.54,160.48,160.47,3.61]
[1752345219956,3.54,160.48,160.47,10.21315518]
[1752345220558,183.4,160.49,160.48,3.61]
[1752345220758,183.4,160.49,160.48,10.21315518]
[1752345221152,179.86,160.49,160.48,10.21315518]
[1752345221652,3.54,160.51,160.48,10.21315518]
[1752345221852,179.86,160.53,160.5,3.61]
[1752345222058,3.54,160.52,160.51,10.21315518]
[1752345222554,3.54,160.52,160.51,6.60315518]
[1752345223151,3.54,160.52,160.51,10.21315518]
[1752345229058,179.82,160.53,160.51,6.60315518]
[1752345229259,179.82,160.53,160.52,10.21315518]
[1752345229455,183.36,160.53,160.52,10.21315518]
[1752345231762,179.82,160.53,160.52,10.21315518]
[1752345233269,183.36,160.53,160.52,10.21315518]
[1752345235467,183.36,160.53,160.52,6.60315518]
[1752345239174,3.54,160.57,160.52,6.60315518]
[1752345239369,545.25355221,160.6,160.42,19.47380958]
[1752345239370,3.54,160.55,160.51,3.61]
[1752345239677,3.54,160.53,160.52,10.22221864]
[1752345242281,3.54,160.53,160.52,6.61221864]
[1752345242876,3.54,160.53,160.48,3.61]
[1752345243077,3.04297418,160.51,160.48,3.61]
[1752345243272,3.54,160.49,160.48,3.61]
[1752345244776,179.8,160.5,160.48,3.61]
[1752345245074,183.34,160.5,160.48,3.61]
[1752345245276,3.54,160.49,160.46,6.2298]
[1752345245574,3.54,160.48,160.45,6.2301]
[1752345245769,3.54,160.48,160.46,3.62]
[1752345245964,3.41,160.47,160.44,6.2305]
[1752345246476,3.41,160.47,160.45,3.62]
[1752345248178,3.41,160.46,160.45,3.62]
[1752345250382,3.41,160.46,160.43,3.62]
[1752345250681,3.04445509,160.46,160.43,3.62]
[1752345250877,3.41,160.45,160.43,3.62]
[1752345251079,3.41,160.45,160.39,162.32801894]
[1752345251281,3.41,160.45,160.4,3.62]
[1752345251483,182.96445509,160.44,160.4,3.62]
[1752345251684,3.41,160.41,160.36,3.62]
[1752345251977,3.41,160.41,160.38,6.2329]
[1752345252181,3.41,160.41,160.36,3.62]
[1752345252182,3.41,160.41,160.35,3.62]
[1752345252685,3.41,160.41,160.39,3.62]
[1752345253984,3.41,160.4,160.38,6.2328]
[1752345254481,3.41,160.4,160.39,3.62]
[1752345254683,3.41,160.4,160.39,10.10777482]
[1752345255586,6.45445509,160.4,160.39,6.48777482]
[1752345259896,3.41,160.4,160.39,10.10777482]
[1752345260191,180.0,160.41,160.4,3.62]
[1752345260192,3.41,160.41,160.4,3.62]
[1752345260392,3.41,160.41,160.4,10.10777482]
[1752345265393,3.41,160.41,160.4,10.08539031]
[1752345265595,3.41,160.41,160.4,3.62]
[1752345265785,180.02,160.43,160.4,3.62]
[1752345265786,183.43,160.43,160.4,3.62]
[1752345267094,183.43,160.43,160.4,6.2322]
[1752345267297,183.43,160.43,160.37,3.62]
[1752345267493,183.43,160.43,160.38,6.46226553]
[1752345267693,180.02,160.43,160.4,3.62]
[1752345267988,3.41,160.41,160.37,3.62]
[1752345268192,3.41,160.41,160.39,3.62]
[1752345268386,3.41,160.41,160.4,6.46272565]
[1752345268593,3.41,160.41,160.4,10.08272565]
[1752345269897,3.41,160.42,160.41,3.62]
[1752345276101,3.36,160.41,160.4,3.36]
[1752345276301,3.36,160.41,160.4,9.82008186]
[1752345277602,3.36,160.41,160.4,9.82309012]
[1752345278298,3.36,160.41,160.4,9.82541402]
[1752345285502,3.36,160.41,160.4,6.46541402]
[1752345286201,3.36,160.41,160.4,9.82541402]
[1752345287201,3.36,160.41,160.4,9.84625711]
[1752345289002,3.36,160.41,160.4,9.85054669]
[1752345290903,3.36,160.41,160.4,6.49054669]
[1752345291710,3.36,160.41,160.4,9.85054669]
[1752345295404,3.36,160.42,160.41,3.36]
[1752345295608,3.36,160.42,160.41,9.85054669]
[1752345296301,183.12,160.42,160.41,9.85054669]
[1752345296507,3.36,160.42,160.41,9.85054669]
[1752345296704,183.12,160.42,160.41,9.85054669]
[1752345297601,3.36,160.42,160.41,9.85054669]
[1752345297813,179.76,160.42,160.41,9.85054669]
[1752345298208,179.76,160.42,160.41,3.36]
[1752345300108,183.12,160.42,160.41,3.36]
[1752345307719,179.76,160.42,160.37,6.2333]
[1752345308018,3.5,160.41,160.4,3.58]
[1752345308219,3.5,160.41,160.39,3.58]
[1752345308519,3.5,160.41,160.37,6.2333]
[1752345308719,3.5,160.41,160.4,3.58]
[1752345310419,3.5,160.41,160.39,3.58]
[1752345312016,3.5,160.41,160.37,6.2333]
[1752345312216,3.5,160.41,160.4,3.58]
[1752345312523,183.24,160.43,160.4,3.58]
[1752345312718,179.74,160.43,160.4,3.58]
[1752345312918,179.74,160.43,160.42,3.58]
[1752345313718,179.74,160.43,160.42,10.08537978]
[1752345314114,179.74,160.43,160.42,16.31677978]
[1752345314819,179.74,160.43,160.42,22.83052566]
[1752345315421,179.72,160.46,160.43,6.2308]
[1752345315720,179.72,160.46,160.45,3.58]
[1752345315914,179.72,160.46,160.45,16.59912566]
[1752345320123,183.22,160.46,160.45,16.59912566]
[1752345321424,183.22,160.46,160.45,13.01912566]
[1752345322625,183.22,160.46,160.45,16.59912566]
[1752345322922,183.22,160.46,160.45,16.58217046]
[1752345324021,183.22,160.46,160.45,13.00217046]
[1752345328628,3.5,160.45,160.39,3.58]
[1752345328922,179.72,160.46,160.34,8.2861443]
[1752345328923,3.5,160.41,160.4,3.58]
[1752345329128,183.2,160.41,160.4,3.58]
[1752345331724,179.7,160.41,160.4,3.58]
[1752345335133,179.7,160.41,160.4,9.8122]
[1752345335334,179.7,160.41,160.4,3.58]
[1752345337636,179.7,160.41,160.4,9.8122]
[1752345339544,179.7,160.45,160.43,3.63]
[1752345339744,3.4,160.44,160.43,3.63]
[1752345339950,3.4,160.44,160.39,6.2322]
[1752345340249,3.4,160.44,160.38,3.04684107]
[1752345340449,3.4,160.44,160.39,3.63]
[1752345340644,3.4,160.44,160.41,3.63]
[1752345340838,3.4,160.44,160.4,6.2319]
[1752345341039,3.4,160.44,160.42,3.63]
[1752345341446,3.4,160.44,160.4,6.2319]
[1752345341654,3.4,160.44,160.4,9.8619]
[1752345341844,3.4,160.44,160.41,3.63]
[1752345342051,3.4,160.44,160.4,6.2319]
[1752345342250,3.4,160.44,160.42,3.63]
[1752345346853,1.9500454,160.43,160.42,3.63]
[1752345347053,5.3500454,160.43,160.42,3.63]
[1752345347749,3.4,160.43,160.42,3.63]
[1752345348052,5.3500454,160.43,160.42,3.63]
[1752345353960,3.4,160.43,160.42,3.63]
[1752345354957,3.4,160.44,160.42,3.63]
[1752345355550,183.1,160.45,160.42,5.5800454]
[1752345355754,183.1,160.45,160.43,3.63]
[1752345356254,183.1,160.45,160.43,5.5800454]
[1752345356255,179.7,160.45,160.43,5.5800454]
[1752345356456,179.7,160.45,160.44,3.63]
[1752345356661,183.1,160.45,160.44,3.63]
[1752345358663,179.7,160.45,160.44,3.63]
[1752345362565,183.1,160.45,160.44,3.63]
[1752345365467,3.4,160.44,160.41,3.63]
[1752345366366,3.4,160.44,160.42,3.53]
[1752345366766,3.4,160.44,160.38,5.24545984]
[1752345366962,3.4,160.44,160.4,3.53]
[1752345368263,3.4,160.44,160.37,5.24545984]
[1752345368568,3.37,160.42,160.38,3.53]
[1752345368768,179.64,160.41,160.38,3.53]
[1752345368968,3.37,160.4,160.38,3.53]
[1752345369467,3.37,160.39,160.38,3.53]
[1752345372866,3.37,160.39,160.37,3.53]
[1752345373076,3.37,160.39,160.36,3.53]
[1752345374768,3.37,160.39,160.37,3.53]
[1752345375378,3.37,160.39,160.34,3.53]
[1752345375666,3.37,160.38,160.35,6.2342]
[1752345375867,3.37,160.38,160.36,3.53]
[1752345377875,3.37,160.37,160.36,3.53]
[1752345380276,182.68544051,160.41,160.36,3.53]
[1752345380475,3.37,160.38,160.36,3.53]
[1752345381176,182.68544051,160.41,160.36,3.53]
[1752345381372,3.37,160.37,160.36,3.53]
[1752345383572,1.9511285,160.39,160.36,3.53]
[1752345383773,3.37,160.38,160.36,3.53]
[1752345385478,3.37,160.37,160.36,3.53]
[1752345386782,179.64,160.41,160.37,3.53]
[1752345386977,179.64,160.41,160.39,1.9511285]
[1752345387179,179.64,160.41,160.4,3.53]
[1752345387479,183.01,160.41,160.4,3.53]
[1752345387871,179.64,160.41,160.4,3.53]
[1752345388071,3.37,160.42,160.4,3.53]
[1752345389978,1.9511285,160.43,160.4,3.53]
[1752345390181,3.37,160.41,160.4,3.53]
[1752345390586,5.3211285,160.41,160.4,3.53]
[1752345390785,3.04770518,160.43,160.39,3.53]
[1752345390984,3.37,160.4,160.39,3.53]
[1752345392484,3.37,160.41,160.39,3.53]
[1752345393084,3.37,160.41,160.4,3.53]
[1752345407693,3.41,160.44,160.39,3.04770518]
[1752345407894,3.41,160.44,160.34,19.45493764]
[1752345407895,3.41,160.44,160.4,6.34558712]
[1752345408097,3.41,160.43,160.41,3.3]
[1752345408301,3.41,160.43,160.41,6.2316]
[1752345408499,3.41,160.43,160.42,3.3]
[1752345410295,3.41,160.44,160.42,6.2314]
[1752345410499,3.41,160.44,160.43,3.3]
[1752345411601,179.66,160.45,160.44,3.3]
[1752345412500,183.07,160.45,160.44,3.3]
[1752345419605,3.41,160.44,160.41,3.3]
[1752345420003,3.41,160.44,160.41,6.2316]
[1752345420306,3.41,160.44,160.42,3.3]
[1752345421100,3.41,160.44,160.4,1.9490466]
[1752345421306,3.41,160.44,160.43,3.3]
[1752345421809,3.41,160.44,160.42,3.3]
[1752345422302,1.9490466,160.44,160.41,3.3]
[1752345422497,3.41,160.43,160.41,3.3]
[1752345423413,3.41,160.43,160.39,3.3]
[1752345424111,3.41,160.43,160.38,6.2328]
[1752345424310,3.41,160.43,160.36,3.04655459]
[1752345424311,3.41,160.43,160.4,3.3]
[1752345424500,3.41,160.43,160.39,6.2325]
[1752345424701,3.41,160.43,160.4,3.3]
[1752345425009,180.7450417,160.45,160.4,6.232]
[1752345425212,3.41,160.42,160.41,3.3]
[1752345426116,3.41,160.42,160.41,9.5318]
[1752345428006,3.41,160.42,160.41,3.3]
[1752345434505,3.41,160.42,160.4,3.47]
[1752345434914,3.41,160.42,160.39,3.47]
[1752345435609,3.63,160.41,160.37,3.47]
[1752345437111,3.63,160.41,160.37,6.2334]
[1752345437314,3.63,160.41,160.38,3.47]
[1752345437616,3.63,160.41,160.38,9.703]
[1752345437816,3.63,160.41,160.39,3.47]
[1752345440017,3.63,160.41,160.4,3.47]
[1752345445127,180.74509245,160.45,160.4,5.42038725]
[1752345445420,3.63,160.43,160.41,3.47]
[1752345446924,3.63,160.43,160.42,3.47]
[1752345451327,182.69473078,160.45,160.42,3.47]
[1752345451328,179.66,160.45,160.42,3.47]
[1752345451522,3.63,160.44,160.42,3.47]
[1752345452526,3.63,160.44,160.42,9.7014]
[1752345452727,3.63,160.44,160.43,3.47]
[1752345453027,3.63,160.44,160.43,5.41963833]
[1752345453223,3.63,160.45,160.44,3.47]
[1752345456728,183.14,160.46,160.44,5.41897145]
[1752345456928,183.14,160.46,160.45,3.44]
[1752345461731,183.14,160.46,160.45,9.6703]
[1752345464226,183.14,160.46,160.45,11.61927145]
[1752345464227,179.54,160.46,160.45,11.61927145]
[1752345464835,183.14,160.46,160.45,11.61927145]
[1752345465035,183.14,160.46,160.45,5.38897145]
[1752345465235,183.14,160.46,160.45,3.44]
[1752345465536,183.14,160.46,160.45,9.6703]
[1752345466940,179.54,160.46,160.45,9.6703]
[1752345467141,179.54,160.46,160.45,11.61927145]
[1752345467439,183.14,160.46,160.45,11.61927145]
[1752345471339,183.14,160.46,160.44,6.2305]
[1752345471538,3.6,160.45,160.44,3.44]
[1752345473143,3.6,160.45,160.44,9.6707]
[1752345474354,3.6,160.45,160.44,11.61967145]
[1752345475354,179.54,160.46,160.44,11.61967145]
[1752345475355,183.14,160.46,160.45,3.44]
[1752345476553,183.14,160.46,160.45,9.6703]
[1752345480256,183.14,160.46,160.45,11.61927145]
[1752345480754,179.54,160.46,160.45,11.61927145]
[1752345481454,3.6,160.48,160.47,9.6695]
[1752345481657,183.04,160.48,160.47,11.61847145]
[1752345481853,183.04,160.48,160.47,9.6695]
[1752345482959,183.04,160.48,160.47,11.61847145]
[1752345483161,183.04,160.48,160.47,9.6695]
[1752345486958,183.04,160.48,160.47,11.61847145]
[1752345490659,179.44,160.48,160.47,11.61847145]
[1752345490862,3.51,160.5,160.49,6.2287]
[1752345491065,3.51,160.5,160.49,9.6387]
[1752345491461,3.51,160.5,160.49,3.41]
[1752345493259,3.51,160.5,160.49,11.58767145]
[1752345496065,3.51,160.5,160.49,5.35897145]
[1752345496363,3.51,160.5,160.48,1.94897145]
[1752345496562,5.45897145,160.5,160.46,9.6397]
[1752345496764,3.51,160.49,160.46,9.6397]
[1752345498270,3.51,160.49,160.46,6.2297]
[1752345498566,3.51,160.49,160.47,3.41]
[1752345499670,3.51,160.49,160.46,6.2297]
[1752345499870,3.51,160.49,160.47,3.41]
[1752345503469,3.51,160.49,160.46,9.6397]
[1752345503973,1.94897145,160.48,160.46,3.41]
[1752345504269,3.51,160.47,160.44,1.94897145]
[1752345504477,3.51,160.47,160.45,3.41]
[1752345505675,3.51,160.46,160.45,3.41]
[1752345506575,3.51,160.46,160.45,9.6403]
[1752345506778,3.51,160.48,160.46,3.41]
[1752345507271,3.51,160.49,160.48,3.41]
[1752345511675,5.45897145,160.49,160.45,1.94897145]
[1752345511879,3.51,160.48,160.46,3.41]
[1752345512972,3.51,160.48,160.46,2.415]
[1752345513774,5.45897145,160.48,160.46,2.415]
[1752345514184,3.51,160.47,160.46,2.415]
[1752345517775,3.51,160.47,160.46,8.6449]
[1752345520482,3.51,160.47,160.45,9.8501]
[1752345520882,3.51,160.47,160.46,3.62]
[1752345521385,3.51,160.47,160.45,6.2301]
[1752345521785,3.51,160.47,160.45,9.8501]
[1752345522290,3.38,160.46,160.45,3.62]
[1752345523777,3.38,160.46,160.45,9.8503]
[1752345527388,3.38,160.48,160.47,6.2294]
[1752345527691,3.38,160.49,160.48,3.62]
[1752345528888,3.38,160.49,160.44,5.23734462]
[1752345529187,3.38,160.49,160.47,3.62]
[1752345530088,3.38,160.49,160.47,9.8493]
[1752345532289,3.38,160.49,160.48,6.2291]
[1752345534292,3.38,160.49,160.47,9.8493]
[1752345537096,3.38,160.49,160.48,6.2291]
[1752345537296,3.38,160.49,160.48,9.8491]
[1752345540197,3.38,160.49,160.48,3.62]
[1752345540893,3.38,160.49,160.48,9.8491]
[1752345542399,3.38,160.49,160.48,11.79734694]
[1752345544701,182.74,160.5,160.49,6.2287]
[1752345544898,182.74,160.5,160.49,9.8487]
[1752345546206,182.74,160.5,160.49,3.62]
[1752345547095,3.59,160.49,160.48,9.599]
[1752345549896,3.59,160.49,160.48,6.229]
[1752345550102,3.59,160.49,160.46,3.37]
[1752345550402,3.59,160.49,160.46,1.94824694]
[1752345550599,3.59,160.49,160.48,11.54734694]
[1752345550799,3.59,160.49,160.48,9.5991]
[1752345553906,3.59,160.49,160.48,3.37]
[1752345554709,3.59,160.49,160.47,9.5994]
[1752345555606,3.59,160.49,160.47,6.2294]
[1752345555808,3.59,160.49,160.48,3.37]
[1752345574011,1.11857,160.52,160.49,3.37]
[1752345574214,1.94824694,160.51,160.47,3.37]
[1752345575317,181.16824694,160.51,160.47,3.37]
[1752345576019,3.37,160.5,160.47,3.37]
[1752345577316,3.37,160.48,160.46,3.65]
[1752345577521,3.37,160.46,160.44,3.65]
[1752345578924,3.37,160.46,160.43,6.231]
[1752345579124,3.37,160.46,160.45,3.65]
[1752345583228,1.94922452,160.46,160.43,3.65]
[1752345583526,3.37,160.45,160.43,3.65]
[1752345583825,1.94922452,160.46,160.43,3.65]
[1752345584022,3.37,160.45,160.43,3.65]
[1752345585030,3.37,160.45,160.43,9.881]
[1752345585230,3.37,160.45,160.44,3.65]
[1752345585933,3.37,160.48,160.45,3.65]
[1752345586620,5.31922452,160.48,160.45,3.65]
[1752345587133,1.94922452,160.48,160.45,6.2302]
[1752345587432,3.37,160.47,160.46,3.65]
[1752345588934,3.37,160.46,160.41,5.59922452]
[1752345589230,1.94922452,160.45,160.42,3.65]
[1752345589431,3.37,160.44,160.42,3.65]
[1752345589632,3.37,160.44,160.42,6.2312]
[1752345589828,3.37,160.44,160.43,3.65]
[1752345592331,5.31922452,160.44,160.41,3.65]
[1752345592532,5.31922452,160.43,160.42,3.65]
[1752345593125,3.37,160.42,160.4,3.65]
[1752345593525,5.31922452,160.41,160.37,1.94922452]
[1752345593836,3.37,160.4,160.39,3.65]
[1752345597830,3.37,160.4,160.35,6.234]
[1752345598025,3.37,160.4,160.37,3.65]
[1752345598626,3.37,160.4,160.38,3.65]
[1752345603439,3.37,160.39,160.38,3.65]
[1752345603843,3.37,160.4,160.38,3.65]
[1752345604341,3.37,160.41,160.38,3.65]
[1752345605040,3.37,160.41,160.34,3.65]
[1752345605041,3.37,160.4,160.34,3.65]
[1752345605440,3.37,160.4,160.35,3.65]
[1752345605636,3.04849259,160.39,160.35,3.65]
[1752345605837,3.63,160.38,160.35,3.65]
[1752345606138,3.63,160.37,160.35,3.65]
[1752345609244,3.63,160.36,160.35,3.65]
[1752345611944,3.63,160.38,160.35,3.65]
[1752345612145,3.63,160.37,160.35,3.65]
[1752345612449,3.63,160.36,160.35,3.65]
[1752345612641,3.04849259,160.39,160.35,3.65]
[1752345612847,3.63,160.37,160.35,3.65]
[1752345614054,3.04849259,160.42,160.35,3.65]
[1752345614249,182.95,160.41,160.35,3.65]
[1752345614448,3.63,160.4,160.35,3.65]
[1752345614653,3.63,160.4,160.36,3.51]
[1752345614952,5.5807889,160.4,160.36,5.4607889]
[1752345615154,3.63,160.39,160.37,3.51]
[1752345616655,1.9507889,160.4,160.37,3.51]
[1752345616857,3.63,160.39,160.37,3.51]
[1752345617353,3.63,160.38,160.37,3.51]
[1752345617954,3.63,160.39,160.37,3.51]
[1752345624760,1.95065341,160.42,160.38,1.95065341]
[1752345624959,542.11,160.45,160.41,5.46065341]
[1752345625262,182.95,160.44,160.42,3.51]
[1752345625466,182.95,160.44,160.42,5.46065341]
[1752345625666,179.32,160.44,160.43,3.51]
[1752345626261,182.95,160.44,160.43,3.51]
[1752345630462,182.95,160.44,160.42,3.51]
[1752345630669,3.63,160.43,160.42,3.51]
[1752345633778,3.63,160.43,160.39,3.51]
[1752345634071,179.3,160.42,160.39,3.51]
[1752345634273,3.63,160.4,160.39,3.51]
[1752345634475,182.93,160.4,160.39,3.51]
[1752345636373,179.3,160.4,160.39,3.51]
[1752345636971,182.92,160.4,160.39,3.51]
[1752345640069,182.9,160.4,160.39,3.51]
[1752345642979,3.62,160.4,160.39,3.51]
[1752345643172,182.9,160.4,160.39,3.51]
[1752345644879,3.62,160.4,160.39,3.51]
[1752345645081,182.9,160.4,160.39,3.51]
[1752345649282,3.62,160.4,160.39,3.51]
[1752345649482,182.9,160.4,160.39,3.51]
[1752345651081,179.28,160.4,160.39,3.51]
[1752345652188,179.28,160.4,160.39,9.7426]
[1752345652383,179.28,160.4,160.39,3.51]
[1752345652987,179.28,160.4,160.39,5.46044057]
[1752345653185,179.28,160.4,160.39,5.24044057]
[1752345653886,3.62,160.44,160.39,5.24044057]
[1752345654090,3.62,160.46,160.43,1.95044057]
[1752345654389,179.28,160.45,160.44,3.29]
[1752345654789,182.9,160.45,160.44,3.29]